{"text_format":"1","workbook":"xlsx","n_sheets":6,"sheets":["表紙","自己採点シート","学習自己点検シート ","単位修得状況確認表（共通教育科目，外国人留学生）","単位修得状況確認表（専門教育科目）","累積グラフ"],"not_rendered":{"charts":10,"images":2,"macros":1,"external_links":0,"defined_names":5,"comments":0,"pivot_tables":0},"unopened":[],"bounds":{"document_bytes":16777216,"sheet_cells":100000,"rows_first":2000,"rows_last":500,"rows_between":2000,"halvings":0,"cell_chars":16384,"cell_head_chars":4096},"cells_cut":0,"cells_raw":0,"read":"whole","date_system":"1900"}

{"sheet":"表紙","index":0,"n_rows":34,"n_cols":2,"rows_kept":34,"cut":false,"hidden":false,"merged":[]}
[]
[]
[]
[]
[]
[]
[]
[]
[]
[]
[]
[null,"鹿児島大学工学部ポートフォリオ"]
[]
[]
[]
[]
[]
[]
[]
[]
[]
[]
[]
[]
[]
[]
[]
[]
[]
[]
[null,"入学年度：平成30年度"]
[null,"学科：環境化学プロセス工学科"]
[null,"氏名："]
[null,"学籍番号："]

{"sheet":"自己採点シート","index":1,"n_rows":22,"n_cols":21,"rows_kept":22,"cut":false,"hidden":false,"merged":[[12,2,12,5],[3,10,3,11],[3,19,3,20],[9,2,9,5],[10,2,10,5],[11,2,11,5],[19,2,19,5],[20,2,20,5],[21,2,21,5],[13,2,13,5],[14,2,14,5],[15,2,15,5],[16,2,16,5],[17,2,17,5],[18,2,18,5]]}
[]
[null,"自己採点シート"]
[]
[null,null,null,null,null,null,null,null,null,"学籍番号",null,null,null,null,null,null,null,null,"氏名"]
[]
[null,"■学生のみなさんへ"]
[null,null,"今期受講した科目に関して、以下の項目に対して自己採点をしてください。(１０点満点)"]
[]
[]
[null,null,"項目",null,null,null,"2018年度\n前期","2018年度\n後期","2019年度\n前期","2019年度\n後期","2020年度\n前期","2020年度\n後期","2019年度\n前期","2019年度\n後期","2020年度\n前期","2020年度\n後期","2020年度\n前期","2020年度\n後期","2021年度\n前期","2021年度\n後期","卒業時"]
[null,1,"工学に関しての基礎知識\n（物理・化学・数学・情報など）"]
[null,2,"各工学分野での基礎知識\n（専門科目など）"]
[null,3,"人前での発表能力"]
[null,4,"人と話し合ったり議論する能力"]
[null,5,"チームの一員として取り組める（チームワーク）能力"]
[null,6,"英語、その他外国語による表現力"]
[null,7,"読書、講習会への参加、英会話や情報処理学習など大学以外での学習による自己啓発・生涯学習能力"]
[null,8,"社会性や国際感覚が身についているか。"]
[null,9,"倫理観、責任感が身についているか。"]
[null,10]
[null,11]
[null,12]

{"sheet":"学習自己点検シート ","index":2,"n_rows":68,"n_cols":13,"rows_kept":68,"cut":false,"hidden":false,"merged":[[4,8,4,9],[4,11,4,12],[7,2,7,12]]}
[]
[null,null,null,null,null,null,null,null,null,null,null,"年度","期"]
[null,"学習自己点検シート"]
[]
[null,null,null,null,null,null,null,"学籍番号",null,null,"氏名"]
[]
[null,"■学生のみなさんへ"]
[null,null,"学生生活全般に関して自己点検をお願いしています。今期受講した科目に関して、以下の質問項目に答えてください。面談時、指導教員（アドバイザー）の先生方から回答に対する具体的なアドバイスを受けてください。"]
[]
[]
[null,"■回答項目"]
[]
[null,1,"今期の目標は達成できましたか。"]
[]
[]
[]
[]
[null,2,"講義への取り組みは積極的でしたか。また、積極的に取り組むことができなかった講義は具体的に何ですか。"]
[]
[]
[]
[]
[null,3,"講義毎に勉強方法がつかめていますか。"]
[]
[]
[]
[]
[null,4,"それぞれの講義の理解度は自分の目標に達していますか。理解度が足りないと感じている講義は何ですか。"]
[]
[]
[]
[]
[null,5,"平日（試験勉強以外）１日当たりの勉強時間（平均）はどのくらいですか。勉強時間が足りないと感じている講義は何ですか。"]
[]
[]
[]
[]
[null,6,"アルバイトと勉強は両立できましたか。"]
[]
[]
[]
[]
[null,7,"サークル活動と勉強は両立できましたか。"]
[]
[]
[]
[]
[null,8,"卒業後の進路についてどのように考えていますか。"]
[]
[]
[]
[]
[null,9,"その他、アドバイスが必要なことはありますか。"]
[]
[]
[]
[]
[null,10]
[]
[]
[]
[]
[null,11]
[]
[]
[]
[]
[null,12]

{"sheet":"単位修得状況確認表（共通教育科目，外国人留学生）","index":3,"n_rows":37,"n_cols":49,"rows_kept":37,"cut":false,"hidden":false,"merged":[[29,35,29,36],[29,37,29,38],[29,25,29,26],[29,27,29,28],[29,29,29,30],[29,31,29,32],[29,33,29,34],[29,15,29,16],[29,17,29,18],[29,19,29,20],[29,21,29,22],[29,23,29,24],[28,27,28,28],[28,0,28,6],[28,7,28,8],[28,9,28,10],[28,11,28,12],[28,13,28,14],[28,25,28,26],[28,15,28,16],[28,17,28,18],[28,19,28,20],[28,21,28,22],[28,23,28,24],[28,29,28,30],[28,31,28,32],[28,33,28,34],[28,35,28,36],[28,37,28,38],[29,0,29,6],[29,7,29,8],[29,9,29,10],[29,11,29,12],[29,13,29,14],[26,39,26,40],[27,37,27,38],[27,15,27,16],[27,17,27,18],[27,19,27,20],[27,21,27,22],[27,23,27,24],[27,25,27,26],[27,27,27,28],[27,29,27,30],[27,31,27,32],[27,33,27,34],[27,35,27,36],[21,40,22,40],[4,35,4,36],[6,0,16,0],[6,1,11,3],[9,4,10,4],[12,1,13,3],[4,25,4,26],[4,27,4,28],[4,29,4,30],[4,31,4,32],[4,33,4,34],[14,1,15,3],[4,17,4,18],[4,19,4,20],[4,21,4,22],[4,23,4,24],[17,0,23,0],[17,1,20,3],[18,4,20,4],[21,1,22,3],[27,0,27,6],[24,0,24,6],[25,1,25,10],[3,7,3,10],[3,11,3,14],[3,15,3,18],[3,19,3,22],[27,13,27,14],[27,7,27,8],[27,9,27,10],[27,11,27,12],[3,23,3,26],[3,27,3,30],[3,31,3,34],[3,35,3,38],[1,0,1,41],[2,0,5,6],[2,7,2,38],[2,39,5,39],[2,40,5,40],[2,41,5,41],[4,7,4,8],[4,9,4,10],[4,11,4,12],[4,13,4,14],[4,37,4,38],[4,15,4,16]]}
[null,null,null,null,null,null,null,null,null,null,null,null,null,null,null,null,null,null,null,null,null,null,null,null,null,null,null,null,null,null,null,null,null,null,null,null,null,null,null,null,null,null,null,null,null,null,null,null,"A"]
["単位修得状況確認表（共通教育科目：外国人留学生）",null,null,null,null,null,null,null,null,null,null,null,null,null,null,null,null,null,null,null,null,null,null,null,null,null,null,null,null,null,null,null,null,null,null,null,null,null,null,null,null,null,null,null,null,null,null,null,"B"]
["　",null,null,null,null,null,null,"取得単位数およびGP",null,null,null,null,null,null,null,null,null,null,null,null,null,null,null,null,null,null,null,null,null,null,null,null,null,null,null,null,null,null,null,"取得単位数","要修得\n単位数","累積GP",null,null,"当該期修得単位の入力要領（共通教育科目）",null,null,null,"C"]
[null,null,null,null,null,null,null,"　年次",null,null,null,"　年次",null,null,null,"　年次",null,null,null,"　年次",null,null,null,"　年次",null,null,null,"　年次",null,null,null,"　年次",null,null,null,"　年次",null,null,null,null,null,null,null,null,"１．黄色枠に各科目(英語及び日本語の場合は修得",null,null,null,"D"]
[null,null,null,null,null,null,null,"１期",null,"２期",null,"３期",null,"４期",null,"５期",null,"６期",null,"７期",null,"８期",null,"９期",null,"10期",null,"11期",null,"12期",null,"13期",null,"14期",null,"15期",null,"16期",null,null,null,null,null,null,"　　した合計単位数)の修得単位数を記入する。",null,null,null,"F"]
[null,null,null,null,null,null,null,"単位","合計GP","単位","合計GP","単位","合計GP","単位","合計GP","単位","合計GP","単位","合計GP","単位","合計GP","単位","合計GP","単位","合計GP","単位","合計GP","単位","合計GP","単位","合計GP","単位","合計GP","単位","合計GP","単位","合計GP","単位","合計GP",null,null,null,null,null,"２．オレンジ枠に修得した必修科目・選択必修",null,null,null,"P"]
["必修科目","初年次教育科目",null,null,"初年次セミナーⅠ",null,null,null,null,null,null,null,null,null,null,null,null,null,null,null,null,null,null,null,null,null,null,null,null,null,null,null,null,null,null,null,null,null,null,{"$f":"SUM(H7,J7,L7,N7,P7,R7,T7,V7,X7,Z7,AB7,AD7,AF7,AH7,AJ7,AL7)","v":0},2,null,null,null,"　　科目それぞれの合計単位数を記入する。"]
[null,null,null,null,"初年次セミナーⅡ",null,null,null,null,null,null,null,null,null,null,null,null,null,null,null,null,null,null,null,null,null,null,null,null,null,null,null,null,null,null,null,null,null,null,{"$f":"SUM(H8,J8,L8,N8,P8,R8,T8,V8,X8,Z8,AB8,AD8,AF8,AH8,AJ8,AL8)","v":0},"－",null,null,null,"３．灰色枠に受講科目の合計GP（単位数×GP）"]
[null,null,null,null,"大学と地域",null,null,null,null,null,null,null,null,null,null,null,null,null,null,null,null,null,null,null,null,null,null,null,null,null,null,null,null,null,null,null,null,null,null,0,2,null,null,null,"　　を計算し、その値を入力する。"]
[null,null,null,null,"体育・健康","理論",null,null,null,null,null,null,null,null,null,null,null,null,null,null,null,null,null,null,null,null,null,null,null,null,null,null,null,null,null,null,null,null,null,0,1,null,null,null,"　（評価とGPの関係：A=4,B=3,C=2,D=1,F=0,Pは"]
[null,null,null,null,null,"実習",null,null,null,null,null,null,null,null,null,null,null,null,null,null,null,null,null,null,null,null,null,null,null,null,null,null,null,null,null,null,null,null,null,0,1,null,null,null,"　　GPの該当外なので合計GP欄は空欄とする。）"]
[null,null,null,null,"情報活用",null,null,null,null,null,null,null,null,null,null,null,null,null,null,null,null,null,null,null,null,null,null,null,null,null,null,null,null,null,null,null,null,null,null,0,2,null,null,null,"４．取得単位数を要修得単位数と比較して、"]
[null,"ｸﾞﾛｰﾊﾞﾙ教育科目",null,null,"英語",null,null,null,null,null,null,null,null,null,null,null,null,null,null,null,null,null,null,null,null,null,null,null,null,null,null,null,null,null,null,null,null,null,null,0,6,null,null,null,"　　単位取得状況を把握する。"]
[null,null,null,null,"異文化理解",null,null,null,null,null,null,null,null,null,null,null,null,null,null,null,null,null,null,null,null,null,null,null,null,null,null,null,null,null,null,null,null,null,null,0,2]
[null,"日本語・日本事情科目",null,null,"日本語",null,null,null,null,null,null,null,null,null,null,null,null,null,null,null,null,null,null,null,null,null,null,null,null,null,null,null,null,null,null,null,null,null,null,0,4,null,null,null,"※期をまたがって開講される科目は、成績の出"]
[null,null,null,null,"日本事情",null,null,null,null,null,null,null,null,null,null,null,null,null,null,null,null,null,null,null,null,null,null,null,null,null,null,null,null,null,null,null,null,null,null,0,"(4)",null,null,null,"　された期に記入する。例えば通年の場合、後"]
[null,"必修科目　計",null,null,null,null,null,null,{"$f":"SUM(I7:I16)","v":0},null,{"$f":"SUM(K7:K16)","v":0},null,{"$f":"SUM(M7:M16)","v":0},null,{"$f":"SUM(O7:O16)","v":0},null,{"$f":"SUM(Q7:Q16)","v":0},null,{"$f":"SUM(S7:S16)","v":0},null,{"$f":"SUM(U7:U16)","v":0},null,{"$f":"SUM(W7:W16)","v":0},null,{"$f":"SUM(Y7:Y16)","v":0},null,{"$f":"SUM(AA7:AA16)","v":0},null,{"$f":"SUM(AC7:AC16)","v":0},null,{"$f":"SUM(AE7:AE16)","v":0},null,{"$f":"SUM(AG7:AG16)","v":0},null,{"$f":"SUM(AI7:AI16)","v":0},null,{"$f":"SUM(AK7:AK16)","v":0},null,{"$f":"SUM(AM7:AM16)","v":0},0,20,{"$f":"SUM(I17,K17,M17,O17,Q17,S17,U17,W17,Y17,AA17,AC17,AE17,AG17,AI17,AK17,AM17)","v":0},null,null,"　期に記入する。"]
["選択必修科目","教養教育科目",null,null,"人文・社会科学分野","選択科目",null,null,null,null,null,null,null,null,null,null,null,null,null,null,null,null,null,null,null,null,null,null,null,null,null,null,null,null,null,null,null,null,null,0,4,null,null,null,"※本表最下部の表の入力方法について"]
[null,null,null,null,"自然科学分野","実験科目",null,null,null,null,null,null,null,null,null,null,null,null,null,null,null,null,null,null,null,null,null,null,null,null,null,null,null,null,null,null,null,null,null,0,2,null,null,null,"　・P評価の単位数は、当該期①の欄に、"]
[null,null,null,null,null,"選択科目",null,null,null,null,null,null,null,null,null,null,null,null,null,null,null,null,null,null,null,null,null,null,null,null,null,null,null,null,null,null,null,null,null,0,2,null,null,null,"　・F評価の単位数は、当該期②の欄に、"]
[null,null,null,null,null,"基礎教育入門科目",null,null,null,null,null,null,null,null,null,null,null,null,null,null,null,null,null,null,null,null,null,null,null,null,null,null,null,null,null,null,null,null,null,0,2,null,null,null,"　・評価F科目の再履修での修得単位数は当該"]
[null,"教養活用科目",null,null,"統合Ⅰ（課題発見）",null,null,null,null,null,null,null,null,null,null,null,null,null,null,null,null,null,null,null,null,null,null,null,null,null,null,null,null,null,null,null,null,null,null,0,4,null,null,null,"　　期③の欄に入力する。なお、②には再履修"]
[null,null,null,null,"統合Ⅱ（課題解決）",null,null,null,null,null,null,null,null,null,null,null,null,null,null,null,null,null,null,null,null,null,null,null,null,null,null,null,null,null,null,null,null,null,null,0,null,null,null,null,"　　の科目は含まない。"]
[null,"選択必修科目　計",null,null,null,null,null,null,{"$f":"SUM(I18:I23)","v":0},null,{"$f":"SUM(K18:K23)","v":0},null,{"$f":"SUM(M18:M23)","v":0},null,{"$f":"SUM(O18:O23)","v":0},null,{"$f":"SUM(Q18:Q23)","v":0},null,{"$f":"SUM(S18:S23)","v":0},null,{"$f":"SUM(U18:U23)","v":0},null,{"$f":"SUM(W18:W23)","v":0},null,{"$f":"SUM(Y18:Y23)","v":0},null,{"$f":"SUM(AA18:AA23)","v":0},null,{"$f":"SUM(AC18:AC23)","v":0},null,{"$f":"SUM(AE18:AE23)","v":0},null,{"$f":"SUM(AG18:AG23)","v":0},null,{"$f":"SUM(AI18:AI23)","v":0},null,{"$f":"SUM(AK18:AK23)","v":0},null,{"$f":"SUM(AM18:AM23)","v":0},0,14,{"$f":"SUM(I24,K24,M24,O24,Q24,S24,U24,W24,Y24,AA24,AC24,AE24,AG24,AI24,AK24,AM24)","v":0},null,null,"※評価Fの科目を再履修して単位を修得した場合"]
["全科目合計",null,null,null,null,null,null,{"$f":"H17+H24","v":0},{"$f":"I17+I24","v":0},{"$f":"J17+J24","v":0},0,0,0,0,0,0,0,0,0,0,0,0,0,0,0,0,0,0,0,0,0,0,0,0,0,0,0,0,0,0,34,{"$f":"SUM(I25,K25,M25,O25,Q25,S25,U25,W25,Y25,AA25,AC25,AE25,AG25,AI25,AK25,AM25)","v":0},null,null,"　の入力方法について"]
["※","「期を増やす」欄により学年を４年間増やすことが可。",null,null,null,null,null,null,null,null,null,null,null,null,null,null,null,null,null,null,null,null,null,null,null,null,null,null,null,null,null,null,null,null,null,null,null,null,null,null,null,null,null,null,"　上記1～3の手順で入力する。"]
[null,null,null,null,null,null,null,null,null,null,null,null,null,null,null,null,null,null,null,null,null,null,null,null,null,null,null,null,null,null,null,null,null,null,null,null,null,null,null,null,null,null,null,null,"※既修得単位（D以上）の科目を再履修して単位を"]
["①【共通教育科目】評価Pの単位数",null,null,null,null,null,null,null,null,null,null,null,null,null,null,null,null,null,null,null,null,null,null,null,null,null,null,null,null,null,null,null,null,null,null,null,null,null,null,{"$f":"SUM(H28:AM28)","v":0},null,null,null,null,"　修得した場合の入力方法について"]
["②【共通教育科目】不合格（評価F）の単位数",null,null,null,null,null,null,null,null,null,null,null,null,null,null,null,null,null,null,null,null,null,null,null,null,null,null,null,null,null,null,null,null,null,null,null,null,null,null,{"$f":"SUM(H29:AM29)","v":0},null,null,null,null,"　今期の分を上記1～3の手順で入力した後、"]
["③【共通教育科目】評価F科目の再履修での修得単位数",null,null,null,null,null,null,null,null,null,null,null,null,null,null,null,null,null,null,null,null,null,null,null,null,null,null,null,null,null,null,null,null,null,null,null,null,null,null,{"$f":"SUM(H30:AM30)","v":0},null,null,null,null,"  過去の評価（黄色枠）と合計GP（灰色枠）"]
[null,null,null,null,null,null,null,null,null,null,null,null,null,null,null,null,null,null,null,null,null,null,null,null,null,null,null,null,null,null,null,null,null,null,null,null,null,null,null,null,null,null,null,null,"　を削除し、過去のオレンジ枠の合計修得単位数"]
[null,null,null,null,null,null,null,null,null,null,null,null,null,null,null,null,null,null,null,null,null,null,null,null,null,null,null,null,null,null,null,null,null,null,null,null,null,null,null,null,null,null,null,null,"　から今期再履修で修得した単位数を引いた値を"]
[null,null,null,null,null,null,null,null,null,null,null,null,null,null,null,null,null,null,null,null,null,null,null,null,null,null,null,null,null,null,null,null,null,null,null,null,null,null,null,null,null,null,null,null,"　過去のオレンジ枠の合計修得単位数に再入力する。"]
[]
[null,null,null,null,null,null,null,null,null,null,null,null,null,null,null,null,null,null,null,null,null,null,null,null,null,null,null,null,null,null,null,null,null,null,null,null,null,null,null,null,null,null,null,null,"（補足説明）"]
[null,null,null,null,null,null,null,null,null,null,null,null,null,null,null,null,null,null,null,null,null,null,null,null,null,null,null,null,null,null,null,null,null,null,null,null,null,null,null,null,null,null,null,null,"※留年した場合は「期を増やす」欄で列を増"]
[null,null,null,null,null,null,null,null,null,null,null,null,null,null,null,null,null,null,null,null,null,null,null,null,null,null,null,null,null,null,null,null,null,null,null,null,null,null,null,null,null,null,null,null,"　やす。"]

{"sheet":"単位修得状況確認表（専門教育科目）","index":4,"n_rows":79,"n_cols":49,"rows_kept":79,"cut":false,"hidden":false,"merged":[[78,29,78,30],[78,31,78,32],[78,33,78,34],[78,35,78,36],[76,31,76,32],[74,37,74,38],[73,42,75,42],[78,0,78,4],[78,5,78,6],[78,7,78,8],[78,9,78,10],[78,11,78,12],[78,13,78,14],[78,15,78,16],[78,17,78,18],[78,19,78,20],[77,19,77,20],[77,0,77,4],[77,5,77,6],[77,7,77,8],[77,9,77,10],[77,11,77,12],[77,13,77,14],[77,15,77,16],[77,17,77,18],[76,19,76,20],[78,21,78,22],[78,23,78,24],[78,25,78,26],[78,27,78,28],[1,0,1,39],[2,37,5,37],[3,5,3,8],[3,9,3,12],[2,39,5,39],[3,17,3,20],[4,23,4,24],[4,29,4,30],[4,31,4,32],[4,17,4,18],[2,38,5,38],[4,19,4,20],[3,21,3,24],[4,33,4,34],[2,2,5,2],[4,13,4,14],[29,0,29,4],[31,0,33,0],[36,44,44,44],[47,44,56,44],[59,44,69,44],[6,44,28,44],[31,44,33,44],[36,0,44,0],[36,1,44,1],[2,0,5,1],[6,0,11,0],[6,1,11,1],[12,0,12,4],[14,1,28,1],[4,5,4,6],[2,5,2,36],[4,35,4,36],[3,25,3,28],[4,25,4,26],[4,27,4,28],[3,29,3,32],[3,33,3,36],[4,21,4,22],[14,0,28,0],[3,13,3,16],[4,7,4,8],[76,13,76,14],[4,9,4,10],[4,11,4,12],[72,0,72,4],[73,0,73,4],[76,5,76,6],[76,7,76,8],[76,9,76,10],[76,11,76,12],[47,0,56,0],[47,1,56,1],[34,0,34,4],[76,0,76,4],[45,0,45,4],[31,1,33,1],[76,15,76,16],[4,15,4,16],[49,48,50,48],[76,33,76,34],[76,35,76,36],[74,1,74,10],[57,0,57,4],[77,21,77,22],[77,23,77,24],[77,25,77,26],[77,27,77,28],[77,29,77,30],[77,31,77,32],[77,33,77,34],[77,35,77,36],[76,21,76,22],[76,23,76,24],[76,25,76,26],[76,27,76,28],[76,29,76,30],[70,0,70,4],[59,0,69,0],[59,1,69,1],[76,17,76,18]]}
[null,null,null,null,null,null,null,null,null,null,null,null,null,null,null,null,null,null,null,null,null,null,null,null,null,null,null,null,null,null,null,null,null,null,null,null,null,null,null,null,null,null,null,null,null,"A"]
["単位修得状況確認表（専門教育科目）",null,null,null,null,null,null,null,null,null,null,null,null,null,null,null,null,null,null,null,null,null,null,null,null,null,null,null,null,null,null,null,null,null,null,null,null,null,null,null,null,null,"受講科目の単位入力要領（専門教育科目）",null,null,"B"]
["区分",null,"必修科目","授","単","履修科目の評価およびGP",null,null,null,null,null,null,null,null,null,null,null,null,null,null,null,null,null,null,null,null,null,null,null,null,null,null,null,null,null,null,null,"取得単位数","要修得\n単位数","累積GP",null,null,"STEP１",null,null,"C"]
[null,null,null,"業"," ","　年次",null,null,null,"　年次",null,null,null,"　年次",null,null,null,"　年次",null,null,null,"　年次",null,null,null,"　年次",null,null,null,"　年次",null,null,null,"　年次",null,null,null,null,null,null,null,null,"当該期に受講した科目の単位を区分ごとに以下の手順で",null,null,"D"]
[null,null,null,"科",null,"１期",null,"２期",null,"３期",null,"４期",null,"５期",null,"６期",null,"７期",null,"８期",null,"９期",null,"10期",null,"11期",null,"12期",null,"13期",null,"14期",null,"15期",null,"16期",null,null,null,null,null,null,"入力し、要修得単位数と比較して単位取得状況を把握",null,null,"F"]
[null,null,null,"目","位","評価","合計GP","評価","合計GP","評価","合計GP","評価","合計GP","評価","合計GP","評価","合計GP","評価","合計GP","評価","合計GP","評価","合計GP","評価","合計GP","評価","合計GP","評価","合計GP","評価","合計GP","評価","合計GP","評価","合計GP","評価","合計GP",null,null,null,null,null,"する。",null,null,"P"]
["基礎教育科目","必修科目","○","微分積分学ＡＩ",2,null,null,null,null,null,null,null,null,null,null,null,null,null,null,null,null,null,null,null,null,null,null,null,null,null,null,null,null,null,null,null,null,null,null,null,null,null,null,null,"工学基礎",250152511101,{"$f":"D7","v":"微分積分学ＡＩ"}]
[null,null,"○","微分積分学ＡＩＩ",2,null,null,null,null,null,null,null,null,null,null,null,null,null,null,null,null,null,null,null,null,null,null,null,null,null,null,null,null,null,null,null,null,null,null,null,null,null,"１．黄色枠に受講科目の評価（A,B,C,D,F,P）を入力する。",null,null,250092800004,"微分積分学ＡＩＩ"]
[null,null,"○","線形代数学Ｉ",2,null,null,null,null,null,null,null,null,null,null,null,null,null,null,null,null,null,null,null,null,null,null,null,null,null,null,null,null,null,null,null,null,null,null,null,null,null,"２．オレンジ枠に合計修得単位数を入力する。",null,null,251328000008,"線形代数学Ｉ"]
[null,null,"○","線形代数学ＩＩ",2,null,null,null,null,null,null,null,null,null,null,null,null,null,null,null,null,null,null,null,null,null,null,null,null,null,null,null,null,null,null,null,null,null,null,null,null,null,"３．灰色枠に受講科目の合計GP（単位数×GP）を計算し、",null,null,250092800006,"線形代数学ＩＩ"]
[null,null,"○","物理学基礎ＡＩ",2,null,null,null,null,null,null,null,null,null,null,null,null,null,null,null,null,null,null,null,null,null,null,null,null,null,null,null,null,null,null,null,null,null,null,null,null,null,"    その値を入力する。",null,null,250092800005,"物理学基礎ＡＩ"]
[null,null,"○","物理学基礎ＡＩＩ",2,null,null,null,null,null,null,null,null,null,null,null,null,null,null,null,null,null,null,null,null,null,null,null,null,null,null,null,null,null,null,null,null,null,null,null,null,null,"　（評価とGPの関係：A=4,B=3,C=2,D=1,F=0,PはGPの該当",null,null,250299110001,"物理学基礎ＡＩＩ"]
["合計",null,null,null,null,null,{"$f":"SUM(G7:G12)","v":0},null,{"$f":"SUM(I7:I12)","v":0},null,{"$f":"SUM(K7:K12)","v":0},null,{"$f":"SUM(M7:M12)","v":0},null,{"$f":"SUM(O7:O12)","v":0},null,{"$f":"SUM(Q7:Q12)","v":0},null,{"$f":"SUM(S7:S12)","v":0},null,{"$f":"SUM(U7:U12)","v":0},null,{"$f":"SUM(W7:W12)","v":0},null,{"$f":"SUM(Y7:Y12)","v":0},null,{"$f":"SUM(AA7:AA12)","v":0},null,{"$f":"SUM(AC7:AC12)","v":0},null,{"$f":"SUM(AE7:AE12)","v":0},null,{"$f":"SUM(AG7:AG12)","v":0},null,{"$f":"SUM(AI7:AI12)","v":0},null,{"$f":"SUM(AK7:AK12)","v":0},{"$f":"SUM(F13,H13,J13,L13,N13,P13,R13,T13,V13,X13,Z13,AB13,AD13,AF13,AH13,AJ13)","v":0},12,{"$f":"SUM(G13,I13,K13,M13,O13,Q13,S13,U13,W13,Y13,AA13,AC13,AE13,AG13,AI13,AK13)","v":0},null,null,"　　外なので合計GP欄は空欄とする。）",null,null,250299200001,0]
[null,null,null,null,null,null,null,null,null,null,null,null,null,null,null,null,null,null,null,null,null,null,null,null,null,null,null,null,null,null,null,null,null,null,null,null,null,null,null,null,null,null,"４．修得単位数を要修得単位数と比較して単位取得状況"]
["専門科目","工学基礎","○","フレッシュマンセミナー",2,null,null,null,null,null,null,null,null,null,null,null,null,null,null,null,null,null,null,null,null,null,null,null,null,null,null,null,null,null,null,null,null,null,null,null,null,null,"    を把握する。",null,null,250228100002,"フレッシュマンセミナー"]
[null,null,"○","工学倫理",2,null,null,null,null,null,null,null,null,null,null,null,null,null,null,null,null,null,null,null,null,null,null,null,null,null,null,null,null,null,null,null,null,null,null,null,null,null,null,null,null,250228100006,"工学倫理"]
[null,null,"○","応用数学Ⅰ",2,null,null,null,null,null,null,null,null,null,null,null,null,null,null,null,null,null,null,null,null,null,null,null,null,null,null,null,null,null,null,null,null,null,null,null,null,null,"※期をまたがって開講される科目は、成績の出された期に",null,null,250228100004,"応用数学Ⅰ"]
[null,null,"○","化学工学プログラミング",2,null,null,null,null,null,null,null,null,null,null,null,null,null,null,null,null,null,null,null,null,null,null,null,null,null,null,null,null,null,null,null,null,null,null,null,null,null,"  記入する。例えば通年の場合、後期に記入する。",null,null,250228100005,"化学工学プログラミング"]
[null,null,null,"情報システム",2,null,null,null,null,null,null,null,null,null,null,null,null,null,null,null,null,null,null,null,null,null,null,null,null,null,null,null,null,null,null,null,null,null,null,null,null,null,"※本表最下部の表の入力方法について"]
[null,null,null,"応用数学Ⅱ",2,null,null,null,null,null,null,null,null,null,null,null,null,null,null,null,null,null,null,null,null,null,null,null,null,null,null,null,null,null,null,null,null,null,null,null,null,null,"　・P評価の単位数は当該期①の欄に、"]
[null,null,null,"化学基礎",2,null,null,null,null,null,null,null,null,null,null,null,null,null,null,null,null,null,null,null,null,null,null,null,null,null,null,null,null,null,null,null,null,null,null,null,null,null,"　・F評価の単位数は当該期②の欄に、"]
[null,null,null,"原子力・放射線と環境",2,null,null,null,null,null,null,null,null,null,null,null,null,null,null,null,null,null,null,null,null,null,null,null,null,null,null,null,null,null,null,null,null,null,null,null,null,null,"　・評価F科目の再履修での修得単位数は当該期③の欄に"]
[null,null,null,"地球科学基礎",2,null,null,null,null,null,null,null,null,null,null,null,null,null,null,null,null,null,null,null,null,null,null,null,null,null,null,null,null,null,null,null,null,null,null,null,null,null,"　　入力する。なお、②には再履修の科目は含まない。"]
[null,null,null,"生産工学論",2,null,null,null,null,null,null,null,null,null,null,null,null,null,null,null,null,null,null,null,null,null,null,null,null,null,null,null,null,null,null,null,null,null,null,null,null,null,"  法について"]
[null,null,null,"エレクトロニクス論",2,null,null,null,null,null,null,null,null,null,null,null,null,null,null,null,null,null,null,null,null,null,null,null,null,null,null,null,null,null,null,null,null,null,null,null,null,null,"  上記１～３の手順で入力する。"]
[null,null,null,"科学技術論",2,null,null,null,null,null,null,null,null,null,null,null,null,null,null,null,null,null,null,null,null,null,null,null,null,null,null,null,null,null,null,null,null,null,null,null,null,null,"※既修得単位（D以上）の科目を再履修して単位を"]
[null,null,null,"環境工学論",2,null,null,null,null,null,null,null,null,null,null,null,null,null,null,null,null,null,null,null,null,null,null,null,null,null,null,null,null,null,null,null,null,null,null,null,null,null,"　修得した場合の入力方法について"]
[null,null,null,"材料科学論",2,null,null,null,null,null,null,null,null,null,null,null,null,null,null,null,null,null,null,null,null,null,null,null,null,null,null,null,null,null,null,null,null,null,null,null,null,null,"　今期の分を上記1～3の手順で入力した後、"]
[null,null,null,"エネルギー工学論",2,null,null,null,null,null,null,null,null,null,null,null,null,null,null,null,null,null,null,null,null,null,null,null,null,null,null,null,null,null,null,null,null,null,null,null,null,null,"  過去の評価（黄色枠）と合計GP（灰色枠）",null,null,250228100003,{"$f":"D29","v":"エネルギー工学論"}]
["合計",null,null,null,null,null,{"$f":"SUM(G15:G29)","v":0},null,{"$f":"SUM(I15:I29)","v":0},null,{"$f":"SUM(K15:K29)","v":0},null,{"$f":"SUM(M15:M29)","v":0},null,{"$f":"SUM(O15:O29)","v":0},null,{"$f":"SUM(Q15:Q29)","v":0},null,{"$f":"SUM(S15:S29)","v":0},null,{"$f":"SUM(U15:U29)","v":0},null,{"$f":"SUM(W15:W29)","v":0},null,{"$f":"SUM(Y15:Y29)","v":0},null,{"$f":"SUM(AA15:AA29)","v":0},null,{"$f":"SUM(AC15:AC29)","v":0},null,{"$f":"SUM(AE15:AE29)","v":0},null,{"$f":"SUM(AG15:AG29)","v":0},null,{"$f":"SUM(AI15:AI29)","v":0},null,{"$f":"SUM(AK15:AK29)","v":0},{"$f":"SUM(F30,H30,J30,L30,N30,P30,R30,T30,V30,X30,Z30,AB30,AD30,AF30,AH30,AJ30)","v":0},16,{"$f":"SUM(G30,I30,K30,M30,O30,Q30,S30,U30,W30,Y30,AA30,AC30,AE30,AG30,AI30,AK30)","v":0},null,null,"　を削除し、過去のオレンジ枠の合計修得単位数"]
[null,null,null,null,null,null,null,null,null,null,null,null,null,null,null,null,null,null,null,null,null,null,null,null,null,null,null,null,null,null,null,null,null,null,null,null,null,null,null,null,null,null,"　から今期再履修で修得した単位数を引いた値を"]
["専門科目","化\n学\n工\n学\n基\n礎","○","化学工学量論",2,null,null,null,null,null,null,null,null,null,null,null,null,null,null,null,null,null,null,null,null,null,null,null,null,null,null,null,null,null,null,null,null,null,null,null,null,null,"　過去のオレンジ枠の合計修得単位数に再入力する。",null,"化\n学\n工\n学\n基\n礎",251328000009,{"$f":"D32","v":"化学工学量論"}]
[null,null,"○","化工熱力学",2,null,null,null,null,null,null,null,null,null,null,null,null,null,null,null,null,null,null,null,null,null,null,null,null,null,null,null,null,null,null,null,null,null,null,null,null,null,null,null,null,251328000010,{"$f":"D33","v":"化工熱力学"}]
[null,null,"○","移動現象I",2,null,null,null,null,null,null,null,null,null,null,null,null,null,null,null,null,null,null,null,null,null,null,null,null,null,null,null,null,null,null,null,null,null,null,null,null,null,"STEP２",null,null,250092800011,{"$f":"D34","v":"移動現象I"}]
["合計",null,null,null,null,null,{"$f":"SUM(G32:G34)","v":0},null,{"$f":"SUM(I32:I34)","v":0},null,{"$f":"SUM(K32:K34)","v":0},null,{"$f":"SUM(M32:M34)","v":0},null,{"$f":"SUM(O32:O34)","v":0},null,{"$f":"SUM(Q32:Q34)","v":0},null,{"$f":"SUM(S32:S34)","v":0},null,{"$f":"SUM(U32:U34)","v":0},null,{"$f":"SUM(W32:W34)","v":0},null,{"$f":"SUM(Y32:Y34)","v":0},null,{"$f":"SUM(AA32:AA34)","v":0},null,{"$f":"SUM(AC32:AC34)","v":0},null,{"$f":"SUM(AE32:AE34)","v":0},null,{"$f":"SUM(AG32:AG34)","v":0},null,{"$f":"SUM(AI32:AI34)","v":0},null,{"$f":"SUM(AK32:AK34)","v":0},{"$f":"SUM(F35,H35,J35,L35,N35,P35,R35,T35,V35,X35,Z35,AB35,AD35,AF35,AH35,AJ35)","v":0},6,{"$f":"SUM(G35,I35,K35,M35,O35,Q35,S35,U35,W35,Y35,AA35,AC35,AE35,AG35,AI35,AK35)","v":0},null,null,"累積GPAの値を学業成績証明書と一致するかチェックする。"]
[null,null,null,null,null,null,null,null,null,null,null,null,null,null,null,null,null,null,null,null,null,null,null,null,null,null,null,null,null,null,null,null,null,null,null,null,null,null,null,null,null,null,"区分ごとの単位修得状況の入力が終了した後に、シート"]
["専門科目","専門基礎A","○","物理化学基礎",2,null,null,null,null,null,null,null,null,null,null,null,null,null,null,null,null,null,null,null,null,null,null,null,null,null,null,null,null,null,null,null,null,null,null,null,null,null,"右下赤枠の「累積GPA」の値が、学業成績証明書に記載されて",null,"専門基礎A",250092800001,{"$f":"D37","v":"物理化学基礎"}]
[null,null,"○","有機化学基礎",2,null,null,null,null,null,null,null,null,null,null,null,null,null,null,null,null,null,null,null,null,null,null,null,null,null,null,null,null,null,null,null,null,null,null,null,null,null,"いる累積GPAの値と一致しているかチェックし、一致",null,null,250092800002,"有機化学基礎"]
[null,null,"○","無機化学基礎",2,null,null,null,null,null,null,null,null,null,null,null,null,null,null,null,null,null,null,null,null,null,null,null,null,null,null,null,null,null,null,null,null,null,null,null,null,null,"していない場合はSTEP１に戻り、入力値に間違いが",null,null,250092800003,"無機化学基礎"]
[null,null,null,"量子化学",2,null,null,null,null,null,null,null,null,null,null,null,null,null,null,null,null,null,null,null,null,null,null,null,null,null,null,null,null,null,null,null,null,null,null,null,null,null,"ないか見直し、正しく入力する。",null,null,251328000007,"量子化学"]
[null,null,null,"工業有機化学",2,null,null,null,null,null,null,null,null,null,null,null,null,null,null,null,null,null,null,null,null,null,null,null,null,null,null,null,null,null,null,null,null,null,null,null,null,null,null,null,null,251328000011,"工業有機化学"]
[null,null,"○","無機化学",2,null,null,null,null,null,null,null,null,null,null,null,null,null,null,null,null,null,null,null,null,null,null,null,null,null,null,null,null,null,null,null,null,null,null,null,null,null,"（補足説明）",null,null,250092800018,"無機化学"]
[null,null,"○","移動現象II",2,null,null,null,null,null,null,null,null,null,null,null,null,null,null,null,null,null,null,null,null,null,null,null,null,null,null,null,null,null,null,null,null,null,null,null,null,null,"※留年した場合は「期を増やす」欄で列を増やす。",null,null,null,"移動現象II"]
[null,null,null,"分析化学",2,null,null,null,null,null,null,null,null,null,null,null,null,null,null,null,null,null,null,null,null,null,null,null,null,null,null,null,null,null,null,null,null,null,null,null,null,null,"※評価Pの科目については、GPおよびGPAの計算に含ま",null,null,250092800014,"分析化学"]
[null,null,"○","機器分析基礎",2,null,null,null,null,null,null,null,null,null,null,null,null,null,null,null,null,null,null,null,null,null,null,null,null,null,null,null,null,null,null,null,null,null,null,null,null,null,"　ない。しかしながら、進級・卒業要件の累積単位数",null,null,251328000012,"機器分析基礎"]
["合計",null,null,null,null,null,{"$f":"SUM(G37:G45)","v":0},null,{"$f":"SUM(I37:I45)","v":0},null,{"$f":"SUM(K37:K45)","v":0},null,{"$f":"SUM(M37:M45)","v":0},null,{"$f":"SUM(O37:O45)","v":0},null,{"$f":"SUM(Q37:Q45)","v":0},null,{"$f":"SUM(S37:S45)","v":0},null,{"$f":"SUM(U37:U45)","v":0},null,{"$f":"SUM(W37:W45)","v":0},null,{"$f":"SUM(Y37:Y45)","v":0},null,{"$f":"SUM(AA37:AA45)","v":0},null,{"$f":"SUM(AC37:AC45)","v":0},null,{"$f":"SUM(AE37:AE45)","v":0},null,{"$f":"SUM(AG37:AG45)","v":0},null,{"$f":"SUM(AI37:AI45)","v":0},null,{"$f":"SUM(AK37:AK45)","v":0},{"$f":"SUM(F46,H46,J46,L46,N46,P46,R46,T46,V46,X46,Z46,AB46,AD46,AF46,AH46,AJ46)","v":0},14,{"$f":"SUM(G46,I46,K46,M46,O46,Q46,S46,U46,W46,Y46,AA46,AC46,AE46,AG46,AI46,AK46)","v":0},null,null,"　には含まれることがあるので、標準履修課程表で確認"]
[null,null,null,null,null,null,null,null,null,null,null,null,null,null,null,null,null,null,null,null,null,null,null,null,null,null,null,null,null,null,null,null,null,null,null,null,null,null,null,null,null,null,"　すること。（インターンシップ等）"]
["専門科目","専門基礎B","○","反応速度論",2,null,null,null,null,null,null,null,null,null,null,null,null,null,null,null,null,null,null,null,null,null,null,null,null,null,null,null,null,null,null,null,null,null,null,null,null,null,"※随意科目については、GPおよびGPAの計算に含まれない。",null,"専門基礎B",250224011001,{"$f":"D48","v":"反応速度論"}]
[null,null,"○","化学工学実習",2,null,null,null,null,null,null,null,null,null,null,null,null,null,null,null,null,null,null,null,null,null,null,null,null,null,null,null,null,null,null,null,null,null,null,null,null,null,"　また、進級・卒業要件にも含まれない。",null,null,251328000013,"化学工学実習"]
[null,null,"○","化学工学実験",4,null,null,null,null,null,null,null,null,null,null,null,null,null,null,null,null,null,null,null,null,null,null,null,null,null,null,null,null,null,null,null,null,null,null,null,null,null,null,null,null,250642400100,"化学工学実験","2件以上ヒット","化学工学実験 250642400100\n化学工学実験（環） 251328000014"]
[null,null,"○","化学プロセス工学",2,null,null,null,null,null,null,null,null,null,null,null,null,null,null,null,null,null,null,null,null,null,null,null,null,null,null,null,null,null,null,null,null,null,null,null,null,null,null,null,null,250224000140,"化学プロセス工学"]
[null,null,"○","分離工学",2,null,null,null,null,null,null,null,null,null,null,null,null,null,null,null,null,null,null,null,null,null,null,null,null,null,null,null,null,null,null,null,null,null,null,null,null,null,null,null,null,259432411111,"分離工学"]
[null,null,"○","反応工学",2,null,null,null,null,null,null,null,null,null,null,null,null,null,null,null,null,null,null,null,null,null,null,null,null,null,null,null,null,null,null,null,null,null,null,null,null,null,null,null,null,250092800021,"反応工学"]
[null,null,"○","無機材料化学Ⅰ",2,null,null,null,null,null,null,null,null,null,null,null,null,null,null,null,null,null,null,null,null,null,null,null,null,null,null,null,null,null,null,null,null,null,null,null,null,null,null,null,null,259652413114,"無機材料化学Ⅰ"]
[null,null,"○","技術英語Ⅰ",2,null,null,null,null,null,null,null,null,null,null,null,null,null,null,null,null,null,null,null,null,null,null,null,null,null,null,null,null,null,null,null,null,null,null,null,null,null,null,null,null,251328000015,"技術英語Ⅰ","ヒットせず"]
[null,null,"○","技術英語Ⅱ",2,null,null,null,null,null,null,null,null,null,null,null,null,null,null,null,null,null,null,null,null,null,null,null,null,null,null,null,null,null,null,null,null,null,null,null,null,null,null,null,null,251328000016,"技術英語Ⅱ","ヒットせず"]
[null,null,"○","粉体工学",2,null,null,null,null,null,null,null,null,null,null,null,null,null,null,null,null,null,null,null,null,null,null,null,null,null,null,null,null,null,null,null,null,null,null,null,null,null,null,null,null,251328000023,"粉体工学","ヒットせず"]
["合計",null,null,null,null,null,{"$f":"SUM(G48:G57)","v":0},null,{"$f":"SUM(I48:I57)","v":0},null,{"$f":"SUM(K48:K57)","v":0},null,{"$f":"SUM(M48:M57)","v":0},null,{"$f":"SUM(O48:O57)","v":0},null,{"$f":"SUM(Q48:Q57)","v":0},null,{"$f":"SUM(S48:S57)","v":0},null,{"$f":"SUM(U48:U57)","v":0},null,{"$f":"SUM(W48:W57)","v":0},null,{"$f":"SUM(Y48:Y57)","v":0},null,{"$f":"SUM(AA48:AA57)","v":0},null,{"$f":"SUM(AC48:AC57)","v":0},null,{"$f":"SUM(AE48:AE57)","v":0},null,{"$f":"SUM(AG48:AG57)","v":0},null,{"$f":"SUM(AI48:AI57)","v":0},null,{"$f":"SUM(AK48:AK57)","v":0},{"$f":"SUM(F58,H58,J58,L58,N58,P58,R58,T58,V58,X58,Z58,AB58,AD58,AF58,AH58,AJ58)","v":0},22,{"$f":"SUM(G58,I58,K58,M58,O58,Q58,S58,U58,W58,Y58,AA58,AC58,AE58,AG58,AI58,AK58)","v":0}]
[]
["専門科目","専門","○","学外実習",1,null,null,null,null,null,null,null,null,null,null,null,null,null,null,null,null,null,null,null,null,null,null,null,null,null,null,null,null,null,null,null,null,null,null,null,null,null,null,null,"専門",250092800025,{"$f":"D60","v":"学外実習"}]
[null,null,"○","化学工学セミナー",2,null,null,null,null,null,null,null,null,null,null,null,null,null,null,null,null,null,null,null,null,null,null,null,null,null,null,null,null,null,null,null,null,null,null,null,null,null,null,null,null,250424000105,"化学工学セミナー"]
[null,null,"○","環化工演習",1,null,null,null,null,null,null,null,null,null,null,null,null,null,null,null,null,null,null,null,null,null,null,null,null,null,null,null,null,null,null,null,null,null,null,null,null,null,null,null,null,251328000017,"環化工演習"]
[null,null,"○","化学工学総論I",2,null,null,null,null,null,null,null,null,null,null,null,null,null,null,null,null,null,null,null,null,null,null,null,null,null,null,null,null,null,null,null,null,null,null,null,null,null,null,null,null,251328000018,{"$f":"D63","v":"化学工学総論I"}]
[null,null,"○","化学工学総論II",2,null,null,null,null,null,null,null,null,null,null,null,null,null,null,null,null,null,null,null,null,null,null,null,null,null,null,null,null,null,null,null,null,null,null,null,null,null,null,null,null,251328000018,"化学工学総論II"]
[null,null,"○","化学工学総論III",2,null,null,null,null,null,null,null,null,null,null,null,null,null,null,null,null,null,null,null,null,null,null,null,null,null,null,null,null,null,null,null,null,null,null,null,null,null,null,null,null,251328000018,"化学工学総論III"]
[null,null,null,"環境化学工学",2,null,null,null,null,null,null,null,null,null,null,null,null,null,null,null,null,null,null,null,null,null,null,null,null,null,null,null,null,null,null,null,null,null,null,null,null,null,null,null,null,259752414105,"環境化学工学"]
[null,null,null,"無機材料化学Ⅱ",2,null,null,null,null,null,null,null,null,null,null,null,null,null,null,null,null,null,null,null,null,null,null,null,null,null,null,null,null,null,null,null,null,null,null,null,null,null,null,null,null,259652424115,"無機材料化学Ⅱ"]
[null,null,"○","化学工学特別研究Ⅰ",2,null,null,null,null,null,null,null,null,null,null,null,null,null,null,null,null,null,null,null,null,null,null,null,null,null,null,null,null,null,null,null,null,null,null,null,null,null,null,null,null,251328000019,"化学工学特別研究Ⅰ","ヒットせず"]
[null,null,"○","化学工学特別研究Ⅱ",2,null,null,null,null,null,null,null,null,null,null,null,null,null,null,null,null,null,null,null,null,null,null,null,null,null,null,null,null,null,null,null,null,null,null,null,null,null,null,null,null,251328000020,"化学工学特別研究Ⅱ","ヒットせず"]
[null,null,"○","卒業論文",6,null,null,null,null,null,null,null,null,null,null,null,null,null,null,null,null,null,null,null,null,null,null,null,null,null,null,null,null,null,null,null,null,null,null,null,null,null,null,null,null,250092800032,"卒業論文"]
["合計",null,null,null,null,null,{"$f":"SUM(G60:G70)","v":0},null,{"$f":"SUM(I60:I70)","v":0},null,{"$f":"SUM(K60:K70)","v":0},null,{"$f":"SUM(M60:M70)","v":0},null,{"$f":"SUM(O60:O70)","v":0},null,{"$f":"SUM(Q60:Q70)","v":0},null,{"$f":"SUM(S60:S70)","v":0},null,{"$f":"SUM(U60:U70)","v":0},null,{"$f":"SUM(W60:W70)","v":0},null,{"$f":"SUM(Y60:Y70)","v":0},null,{"$f":"SUM(AA60:AA70)","v":0},null,{"$f":"SUM(AC60:AC70)","v":0},null,{"$f":"SUM(AE60:AE70)","v":0},null,{"$f":"SUM(AG60:AG70)","v":0},null,{"$f":"SUM(AI60:AI70)","v":0},null,{"$f":"SUM(AK60:AK70)","v":0},{"$f":"SUM(F71,H71,J71,L71,N71,P71,R71,T71,V71,X71,Z71,AB71,AD71,AF71,AH71,AJ71)","v":0},22,{"$f":"SUM(G71,I71,K71,M71,O71,Q71,S71,U71,W71,Y71,AA71,AC71,AE71,AG71,AI71,AK71)","v":0}]
[]
["専門教育科目合計（単位数とGP）",null,null,null,null,{"$f":"SUM(F13,F30,F35,F46,F58,F71)","v":0},0,0,0,0,0,0,0,0,0,0,0,0,0,0,0,0,0,0,0,0,0,0,0,0,0,0,0,0,0,0,0,{"$f":"SUM(F73,H73,J73,L73,N73,P73,R73,T73,V73,X73,Z73,AB73,AD73,AF73,AH73,AJ73)","v":0},92,{"$f":"SUM(G73,I73,K73,M73,O73,Q73,S73,U73,W73,Y73,AA73,AC73,AE73,AG73,AI73,AK73)","v":0}]
["(共通＋専門)教育科目合計（単位数とGP）",null,null,null,null,{"$f":"'単位修得状況確認表（共通教育科目，外国人留学生）'!H25+F73","v":0},{"$f":"'単位修得状況確認表（共通教育科目，外国人留学生）'!I25+G73","v":0},{"$f":"'単位修得状況確認表（共通教育科目，外国人留学生）'!J25+H73","v":0},{"$f":"'単位修得状況確認表（共通教育科目，外国人留学生）'!K25+I73","v":0},{"$f":"'単位修得状況確認表（共通教育科目，外国人留学生）'!L25+J73","v":0},{"$f":"'単位修得状況確認表（共通教育科目，外国人留学生）'!M25+K73","v":0},{"$f":"'単位修得状況確認表（共通教育科目，外国人留学生）'!N25+L73","v":0},{"$f":"'単位修得状況確認表（共通教育科目，外国人留学生）'!O25+M73","v":0},{"$f":"'単位修得状況確認表（共通教育科目，外国人留学生）'!P25+N73","v":0},{"$f":"'単位修得状況確認表（共通教育科目，外国人留学生）'!Q25+O73","v":0},{"$f":"'単位修得状況確認表（共通教育科目，外国人留学生）'!R25+P73","v":0},{"$f":"'単位修得状況確認表（共通教育科目，外国人留学生）'!S25+Q73","v":0},{"$f":"'単位修得状況確認表（共通教育科目，外国人留学生）'!T25+R73","v":0},{"$f":"'単位修得状況確認表（共通教育科目，外国人留学生）'!U25+S73","v":0},{"$f":"'単位修得状況確認表（共通教育科目，外国人留学生）'!V25+T73","v":0},{"$f":"'単位修得状況確認表（共通教育科目，外国人留学生）'!W25+U73","v":0},{"$f":"'単位修得状況確認表（共通教育科目，外国人留学生）'!X25+V73","v":0},{"$f":"'単位修得状況確認表（共通教育科目，外国人留学生）'!Y25+W73","v":0},{"$f":"'単位修得状況確認表（共通教育科目，外国人留学生）'!Z25+X73","v":0},{"$f":"'単位修得状況確認表（共通教育科目，外国人留学生）'!AA25+Y73","v":0},{"$f":"'単位修得状況確認表（共通教育科目，外国人留学生）'!AB25+Z73","v":0},{"$f":"'単位修得状況確認表（共通教育科目，外国人留学生）'!AC25+AA73","v":0},{"$f":"'単位修得状況確認表（共通教育科目，外国人留学生）'!AD25+AB73","v":0},{"$f":"'単位修得状況確認表（共通教育科目，外国人留学生）'!AE25+AC73","v":0},{"$f":"'単位修得状況確認表（共通教育科目，外国人留学生）'!AF25+AD73","v":0},{"$f":"'単位修得状況確認表（共通教育科目，外国人留学生）'!AG25+AE73","v":0},{"$f":"'単位修得状況確認表（共通教育科目，外国人留学生）'!AH25+AF73","v":0},{"$f":"'単位修得状況確認表（共通教育科目，外国人留学生）'!AI25+AG73","v":0},{"$f":"'単位修得状況確認表（共通教育科目，外国人留学生）'!AJ25+AH73","v":0},{"$f":"'単位修得状況確認表（共通教育科目，外国人留学生）'!AK25+AI73","v":0},{"$f":"'単位修得状況確認表（共通教育科目，外国人留学生）'!AL25+AJ73","v":0},{"$f":"'単位修得状況確認表（共通教育科目，外国人留学生）'!AM25+AK73","v":0},{"$f":"SUM(F74,H74,J74,L74,N74,P74,R74,T74,V74,X74,Z74,AB74,AD74,AF74,AH74,AJ74)","v":0},126,{"$f":"SUM(G74,I74,K74,M74,O74,Q74,S74,U74,W74,Y74,AA74,AC74,AE74,AG74,AI74,AK74)","v":0}]
["※","「期を増やす」欄により学年を４年間増やすことが可。",null,null,null,null,null,null,null,null,null,null,null,null,null,null,null,null,null,null,null,null,null,null,null,null,null,null,null,null,null,null,null,null,null,null,null,"累積GPA",null,{"$f":"IF(AL74-AL77>0,AN74/(AL74-AL77-'単位修得状況確認表（共通教育科目，外国人留学生）'!AN28+AL78+'単位修得状況確認表（共通教育科目，外国人留学生）'!AN29-AL79-'単位修得状況確認表（共通教育科目，外国人留学生）'!AN30),\"\")","v":""}]
[]
["①【専門教育科目】評価Pの単位数",null,null,null,null,null,null,null,null,null,null,null,null,null,null,null,null,null,null,null,null,null,null,null,null,null,null,null,null,null,null,null,null,null,null,null,null,{"$f":"SUM(F77:AK77)","v":0}]
["②【専門教育科目】不合格（評価F）の単位数",null,null,null,null,null,null,null,null,null,null,null,null,null,null,null,null,null,null,null,null,null,null,null,null,null,null,null,null,null,null,null,null,null,null,null,null,{"$f":"SUM(F78:AK78)","v":0}]
["③【専門教育科目】評価F科目の再履修での修得単位数",null,null,null,null,null,null,null,null,null,null,null,null,null,null,null,null,null,null,null,null,null,null,null,null,null,null,null,null,null,null,null,null,null,null,null,null,{"$f":"SUM(F79:AK79)","v":0}]

{"sheet":"累積グラフ","index":5,"n_rows":217,"n_cols":8,"rows_kept":217,"cut":false,"hidden":false,"merged":[[65,2,65,3],[3,6,3,7],[3,2,3,3],[3,4,3,5],[34,2,34,3],[34,4,34,5]]}
[]
[null,"共通教育科目（必修科目）"]
[]
[null,null,"初年次教育科目",null,"ｸﾞﾛｰﾊﾞﾙ教育科目",null,"日本語・日本事情科目"]
[null,null,"取得単位数","累積取得単位数","取得単位数","累積取得単位数","取得単位数","累積取得単位数"]
[null,"1年前期終了時",{"$f":"SUM('単位修得状況確認表（共通教育科目，外国人留学生）'!H7:H12)","v":0},{"$f":"SUM(C$6:C6)","v":0},{"$f":"SUM('単位修得状況確認表（共通教育科目，外国人留学生）'!H13:H14)","v":0},{"$f":"SUM(E$6:E6)","v":0},{"$f":"SUM('単位修得状況確認表（共通教育科目，外国人留学生）'!H15:H16)","v":0},{"$f":"SUM(G$6:G6)","v":0}]
[null,"1年後期終了時",{"$f":"SUM('単位修得状況確認表（共通教育科目，外国人留学生）'!J7:J12)","v":0},{"$f":"SUM(C$6:C7)","v":0},{"$f":"SUM('単位修得状況確認表（共通教育科目，外国人留学生）'!J13:J14)","v":0},{"$f":"SUM(E$6:E7)","v":0},{"$f":"SUM('単位修得状況確認表（共通教育科目，外国人留学生）'!J15:J16)","v":0},{"$f":"SUM(G$6:G7)","v":0}]
[null,"2年前期終了時",{"$f":"SUM('単位修得状況確認表（共通教育科目，外国人留学生）'!L7:L12)","v":0},{"$f":"SUM(C$6:C8)","v":0},{"$f":"SUM('単位修得状況確認表（共通教育科目，外国人留学生）'!L13:L14)","v":0},{"$f":"SUM(E$6:E8)","v":0},{"$f":"SUM('単位修得状況確認表（共通教育科目，外国人留学生）'!L15:L16)","v":0},{"$f":"SUM(G$6:G8)","v":0}]
[null,"2年後期終了時",{"$f":"SUM('単位修得状況確認表（共通教育科目，外国人留学生）'!N7:N12)","v":0},{"$f":"SUM(C$6:C9)","v":0},{"$f":"SUM('単位修得状況確認表（共通教育科目，外国人留学生）'!N13:N14)","v":0},{"$f":"SUM(E$6:E9)","v":0},{"$f":"SUM('単位修得状況確認表（共通教育科目，外国人留学生）'!N15:N16)","v":0},{"$f":"SUM(G$6:G9)","v":0}]
[null,"3年前期終了時",{"$f":"SUM('単位修得状況確認表（共通教育科目，外国人留学生）'!P7:P12)","v":0},{"$f":"SUM(C$6:C10)","v":0},{"$f":"SUM('単位修得状況確認表（共通教育科目，外国人留学生）'!P13:P14)","v":0},{"$f":"SUM(E$6:E10)","v":0},{"$f":"SUM('単位修得状況確認表（共通教育科目，外国人留学生）'!P15:P16)","v":0},{"$f":"SUM(G$6:G10)","v":0}]
[null,"3年後期終了時",{"$f":"SUM('単位修得状況確認表（共通教育科目，外国人留学生）'!R7:R12)","v":0},{"$f":"SUM(C$6:C11)","v":0},{"$f":"SUM('単位修得状況確認表（共通教育科目，外国人留学生）'!R13:R14)","v":0},{"$f":"SUM(E$6:E11)","v":0},{"$f":"SUM('単位修得状況確認表（共通教育科目，外国人留学生）'!R15:R16)","v":0},{"$f":"SUM(G$6:G11)","v":0}]
[null,"4年前期終了時",{"$f":"SUM('単位修得状況確認表（共通教育科目，外国人留学生）'!T7:T12)","v":0},{"$f":"SUM(C$6:C12)","v":0},{"$f":"SUM('単位修得状況確認表（共通教育科目，外国人留学生）'!T13:T14)","v":0},{"$f":"SUM(E$6:E12)","v":0},{"$f":"SUM('単位修得状況確認表（共通教育科目，外国人留学生）'!T15:T16)","v":0},{"$f":"SUM(G$6:G12)","v":0}]
[null,"4年後期終了時",{"$f":"SUM('単位修得状況確認表（共通教育科目，外国人留学生）'!V7:V12)","v":0},{"$f":"SUM(C$6:C13)","v":0},{"$f":"SUM('単位修得状況確認表（共通教育科目，外国人留学生）'!V13:V14)","v":0},{"$f":"SUM(E$6:E13)","v":0},{"$f":"SUM('単位修得状況確認表（共通教育科目，外国人留学生）'!V15:V16)","v":0},{"$f":"SUM(G$6:G13)","v":0}]
[]
[]
[]
[]
[]
[]
[]
[]
[]
[]
[]
[]
[]
[]
[]
[]
[]
[]
[]
[null,"共通教育科目（選択必修科目）"]
[]
[null,null,"教養教育科目",null,"教養活用科目"]
[null,null,"取得単位数","累積取得単位数","取得単位数","累積取得単位数"]
[null,"1年前期終了時",{"$f":"SUM('単位修得状況確認表（共通教育科目，外国人留学生）'!H18:H21)","v":0},{"$f":"SUM(C$37:C37)","v":0},{"$f":"SUM('単位修得状況確認表（共通教育科目，外国人留学生）'!H22:H23)","v":0},{"$f":"SUM(E$37:E37)","v":0}]
[null,"1年後期終了時",{"$f":"SUM('単位修得状況確認表（共通教育科目，外国人留学生）'!J18:J21)","v":0},{"$f":"SUM(C$37:C38)","v":0},{"$f":"SUM('単位修得状況確認表（共通教育科目，外国人留学生）'!J22:J23)","v":0},{"$f":"SUM(E$37:E38)","v":0}]
[null,"2年前期終了時",{"$f":"SUM('単位修得状況確認表（共通教育科目，外国人留学生）'!L18:L21)","v":0},{"$f":"SUM(C$37:C39)","v":0},{"$f":"SUM('単位修得状況確認表（共通教育科目，外国人留学生）'!L22:L23)","v":0},{"$f":"SUM(E$37:E39)","v":0}]
[null,"2年後期終了時",{"$f":"SUM('単位修得状況確認表（共通教育科目，外国人留学生）'!N18:N21)","v":0},{"$f":"SUM(C$37:C40)","v":0},{"$f":"SUM('単位修得状況確認表（共通教育科目，外国人留学生）'!N22:N23)","v":0},{"$f":"SUM(E$37:E40)","v":0}]
[null,"3年前期終了時",{"$f":"SUM('単位修得状況確認表（共通教育科目，外国人留学生）'!P18:P21)","v":0},{"$f":"SUM(C$37:C41)","v":0},{"$f":"SUM('単位修得状況確認表（共通教育科目，外国人留学生）'!P22:P23)","v":0},{"$f":"SUM(E$37:E41)","v":0}]
[null,"3年後期終了時",{"$f":"SUM('単位修得状況確認表（共通教育科目，外国人留学生）'!R18:R21)","v":0},{"$f":"SUM(C$37:C42)","v":0},{"$f":"SUM('単位修得状況確認表（共通教育科目，外国人留学生）'!R22:R23)","v":0},{"$f":"SUM(E$37:E42)","v":0}]
[null,"4年前期終了時",{"$f":"SUM('単位修得状況確認表（共通教育科目，外国人留学生）'!T18:T21)","v":0},{"$f":"SUM(C$37:C43)","v":0},{"$f":"SUM('単位修得状況確認表（共通教育科目，外国人留学生）'!T22:T23)","v":0},{"$f":"SUM(E$37:E43)","v":0}]
[null,"4年後期終了時",{"$f":"SUM('単位修得状況確認表（共通教育科目，外国人留学生）'!V18:V21)","v":0},{"$f":"SUM(C$37:C44)","v":0},{"$f":"SUM('単位修得状況確認表（共通教育科目，外国人留学生）'!V22:V23)","v":0},{"$f":"SUM(E$37:E44)","v":0}]
[]
[]
[]
[]
[]
[]
[]
[]
[]
[]
[]
[]
[]
[]
[]
[]
[]
[]
[]
[null,"専門教育科目（基礎教育科目）"]
[]
[null,null,"必修科目"]
[null,null,"取得単位数","累積取得単位数"]
[null,"1年前期終了時",{"$f":"'単位修得状況確認表（専門教育科目）'!F13","v":0},{"$f":"SUM(C$68:C68)","v":0}]
[null,"1年後期終了時",{"$f":"'単位修得状況確認表（専門教育科目）'!H13","v":0},{"$f":"SUM(C$68:C69)","v":0}]
[null,"2年前期終了時",{"$f":"'単位修得状況確認表（専門教育科目）'!J13","v":0},{"$f":"SUM(C$68:C70)","v":0}]
[null,"2年後期終了時",{"$f":"'単位修得状況確認表（専門教育科目）'!L13","v":0},{"$f":"SUM(C$68:C71)","v":0}]
[null,"3年前期終了時",{"$f":"'単位修得状況確認表（専門教育科目）'!N13","v":0},{"$f":"SUM(C$68:C72)","v":0}]
[null,"3年後期終了時",{"$f":"'単位修得状況確認表（専門教育科目）'!P13","v":0},{"$f":"SUM(C$68:C73)","v":0}]
[null,"4年前期終了時",{"$f":"'単位修得状況確認表（専門教育科目）'!R13","v":0},{"$f":"SUM(C$68:C74)","v":0}]
[null,"4年後期終了時",{"$f":"'単位修得状況確認表（専門教育科目）'!T13","v":0},{"$f":"SUM(C$68:C75)","v":0}]
[]
[]
[]
[]
[]
[]
[null,"専門教育科目（工学基礎）"]
[]
[null,null,"取得単位数","累積取得単位数"]
[null,"1年前期終了時",{"$f":"'単位修得状況確認表（専門教育科目）'!F30","v":0},{"$f":"SUM(C$85:C85)","v":0}]
[null,"1年後期終了時",{"$f":"'単位修得状況確認表（専門教育科目）'!H30","v":0},{"$f":"SUM(C$85:C86)","v":0}]
[null,"2年前期終了時",{"$f":"'単位修得状況確認表（専門教育科目）'!J30","v":0},{"$f":"SUM(C$85:C87)","v":0}]
[null,"2年後期終了時",{"$f":"'単位修得状況確認表（専門教育科目）'!L30","v":0},{"$f":"SUM(C$85:C88)","v":0}]
[null,"3年前期終了時",{"$f":"'単位修得状況確認表（専門教育科目）'!N30","v":0},{"$f":"SUM(C$85:C89)","v":0}]
[null,"3年後期終了時",{"$f":"'単位修得状況確認表（専門教育科目）'!P30","v":0},{"$f":"SUM(C$85:C90)","v":0}]
[null,"4年前期終了時",{"$f":"'単位修得状況確認表（専門教育科目）'!R30","v":0},{"$f":"SUM(C$85:C91)","v":0}]
[null,"4年後期終了時",{"$f":"'単位修得状況確認表（専門教育科目）'!T30","v":0},{"$f":"SUM(C$85:C92)","v":0}]
[]
[]
[]
[]
[]
[]
[]
[null,"専門教育科目（化学工学基礎）"]
[]
[null,null,"取得単位数","累積取得単位数"]
[null,"1年前期終了時",{"$f":"'単位修得状況確認表（専門教育科目）'!F35","v":0},{"$f":"SUM(C$103:C103)","v":0}]
[null,"1年後期終了時",{"$f":"'単位修得状況確認表（専門教育科目）'!H35","v":0},{"$f":"SUM(C$103:C104)","v":0}]
[null,"2年前期終了時",{"$f":"'単位修得状況確認表（専門教育科目）'!J35","v":0},{"$f":"SUM(C$103:C105)","v":0}]
[null,"2年後期終了時",{"$f":"'単位修得状況確認表（専門教育科目）'!L35","v":0},{"$f":"SUM(C$103:C106)","v":0}]
[null,"3年前期終了時",{"$f":"'単位修得状況確認表（専門教育科目）'!N35","v":0},{"$f":"SUM(C$103:C107)","v":0}]
[null,"3年後期終了時",{"$f":"'単位修得状況確認表（専門教育科目）'!P35","v":0},{"$f":"SUM(C$103:C108)","v":0}]
[null,"4年前期終了時",{"$f":"'単位修得状況確認表（専門教育科目）'!R35","v":0},{"$f":"SUM(C$103:C109)","v":0}]
[null,"4年後期終了時",{"$f":"'単位修得状況確認表（専門教育科目）'!T35","v":0},{"$f":"SUM(C$103:C110)","v":0}]
[]
[]
[]
[]
[]
[]
[]
[null,"専門教育科目（専門基礎A）"]
[]
[null,null,"取得単位数","累積取得単位数"]
[null,"1年前期終了時",{"$f":"'単位修得状況確認表（専門教育科目）'!F46","v":0},{"$f":"SUM(C$121:C121)","v":0}]
[null,"1年後期終了時",{"$f":"'単位修得状況確認表（専門教育科目）'!H46","v":0},{"$f":"SUM(C$121:C122)","v":0}]
[null,"2年前期終了時",{"$f":"'単位修得状況確認表（専門教育科目）'!J46","v":0},{"$f":"SUM(C$121:C123)","v":0}]
[null,"2年後期終了時",{"$f":"'単位修得状況確認表（専門教育科目）'!L46","v":0},{"$f":"SUM(C$121:C124)","v":0}]
[null,"3年前期終了時",{"$f":"'単位修得状況確認表（専門教育科目）'!N46","v":0},{"$f":"SUM(C$121:C125)","v":0}]
[null,"3年後期終了時",{"$f":"'単位修得状況確認表（専門教育科目）'!P46","v":0},{"$f":"SUM(C$121:C126)","v":0}]
[null,"4年前期終了時",{"$f":"'単位修得状況確認表（専門教育科目）'!R46","v":0},{"$f":"SUM(C$121:C127)","v":0}]
[null,"4年後期終了時",{"$f":"'単位修得状況確認表（専門教育科目）'!T46","v":0},{"$f":"SUM(C$121:C128)","v":0}]
[]
[]
[]
[]
[]
[]
[]
[null,"専門教育科目（専門基礎B）"]
[]
[null,null,"取得単位数","累積取得単位数"]
[null,"1年前期終了時",{"$f":"'単位修得状況確認表（専門教育科目）'!F58","v":0},{"$f":"SUM(C$139:C139)","v":0}]
[null,"1年後期終了時",{"$f":"'単位修得状況確認表（専門教育科目）'!H58","v":0},{"$f":"SUM(C$139:C140)","v":0}]
[null,"2年前期終了時",{"$f":"'単位修得状況確認表（専門教育科目）'!J58","v":0},{"$f":"SUM(C$139:C141)","v":0}]
[null,"2年後期終了時",{"$f":"'単位修得状況確認表（専門教育科目）'!L58","v":0},{"$f":"SUM(C$139:C142)","v":0}]
[null,"3年前期終了時",{"$f":"'単位修得状況確認表（専門教育科目）'!N58","v":0},{"$f":"SUM(C$139:C143)","v":0}]
[null,"3年後期終了時",{"$f":"'単位修得状況確認表（専門教育科目）'!P58","v":0},{"$f":"SUM(C$139:C144)","v":0}]
[null,"4年前期終了時",{"$f":"'単位修得状況確認表（専門教育科目）'!R58","v":0},{"$f":"SUM(C$139:C145)","v":0}]
[null,"4年後期終了時",{"$f":"'単位修得状況確認表（専門教育科目）'!T58","v":0},{"$f":"SUM(C$139:C146)","v":0}]
[]
[]
[]
[]
[]
[]
[]
[null,"専門教育科目（専門）"]
[]
[null,null,"取得単位数","累積取得単位数"]
[null,"1年前期終了時",{"$f":"'単位修得状況確認表（専門教育科目）'!F71","v":0},{"$f":"SUM(C$157:C157)","v":0}]
[null,"1年後期終了時",{"$f":"'単位修得状況確認表（専門教育科目）'!H71","v":0},{"$f":"SUM(C$157:C158)","v":0}]
[null,"2年前期終了時",{"$f":"'単位修得状況確認表（専門教育科目）'!J71","v":0},{"$f":"SUM(C$157:C159)","v":0}]
[null,"2年後期終了時",{"$f":"'単位修得状況確認表（専門教育科目）'!L71","v":0},{"$f":"SUM(C$157:C160)","v":0}]
[null,"3年前期終了時",{"$f":"'単位修得状況確認表（専門教育科目）'!N71","v":0},{"$f":"SUM(C$157:C161)","v":0}]
[null,"3年後期終了時",{"$f":"'単位修得状況確認表（専門教育科目）'!P71","v":0},{"$f":"SUM(C$157:C162)","v":0}]
[null,"4年前期終了時",{"$f":"'単位修得状況確認表（専門教育科目）'!R71","v":0},{"$f":"SUM(C$157:C163)","v":0}]
[null,"4年後期終了時",{"$f":"'単位修得状況確認表（専門教育科目）'!T71","v":0},{"$f":"SUM(C$157:C164)","v":0}]
[]
[]
[]
[]
[]
[]
[]
[]
[]
[]
[null,"累積単位数"]
[]
[null,null,"取得単位数","累積取得単位数"]
[null,"1年前期終了時",{"$f":"SUM(C6,E6,G6,C37,E37,C68,C85,C103,C121,C139,C157)","v":0},{"$f":"SUM(C$178:C178)","v":0}]
[null,"1年後期終了時",{"$f":"SUM(C7,E7,G7,C38,E38,C69,C86,C104,C122,C140,C158)","v":0},{"$f":"SUM(C$178:C179)","v":0}]
[null,"2年前期終了時",0,{"$f":"SUM(C$178:C180)","v":0}]
[null,"2年後期終了時",0,{"$f":"SUM(C$178:C181)","v":0}]
[null,"3年前期終了時",0,{"$f":"SUM(C$178:C182)","v":0}]
[null,"3年後期終了時",0,{"$f":"SUM(C$178:C183)","v":0}]
[null,"4年前期終了時",0,{"$f":"SUM(C$178:C184)","v":0}]
[null,"4年後期終了時",0,{"$f":"SUM(C$178:C185)","v":0}]
[]
[]
[]
[]
[]
[]
[]
[]
[]
[]
[]
[]
[]
[]
[]
[]
[]
[]
[]
[]
[]
[null,"GPA"]
[]
[null,null,"累積GP","累積GPA","GPA累積単位数","累積P","累積F"]
[null,"1年前期終了時",{"$f":"'単位修得状況確認表（共通教育科目，外国人留学生）'!I25+'単位修得状況確認表（専門教育科目）'!G73","v":0},{"$f":"IF(E210=0,\"\",C210/E210)","v":""},{"$f":"D178-F210+G210","v":0},{"$f":"'単位修得状況確認表（共通教育科目，外国人留学生）'!H28+'単位修得状況確認表（専門教育科目）'!F77","v":0},{"$f":"'単位修得状況確認表（共通教育科目，外国人留学生）'!H29+'単位修得状況確認表（専門教育科目）'!F78-'単位修得状況確認表（共通教育科目，外国人留学生）'!H30-'単位修得状況確認表（専門教育科目）'!F79","v":0}]
[null,"1年後期終了時",{"$f":"C210+'単位修得状況確認表（共通教育科目，外国人留学生）'!K25+'単位修得状況確認表（専門教育科目）'!I73","v":0},"",{"$f":"D179-F211+G211","v":0},{"$f":"F210+'単位修得状況確認表（共通教育科目，外国人留学生）'!J28+'単位修得状況確認表（専門教育科目）'!H77","v":0},{"$f":"G210+'単位修得状況確認表（共通教育科目，外国人留学生）'!J29+'単位修得状況確認表（専門教育科目）'!H78-'単位修得状況確認表（共通教育科目，外国人留学生）'!J30-'単位修得状況確認表（専門教育科目）'!H79","v":0}]
[null,"2年前期終了時",{"$f":"C211+'単位修得状況確認表（共通教育科目，外国人留学生）'!M25+'単位修得状況確認表（専門教育科目）'!K73","v":0},"",{"$f":"D180-F212+G212","v":0},{"$f":"F211+'単位修得状況確認表（共通教育科目，外国人留学生）'!L28+'単位修得状況確認表（専門教育科目）'!J77","v":0},{"$f":"G211+'単位修得状況確認表（共通教育科目，外国人留学生）'!L29+'単位修得状況確認表（専門教育科目）'!J78-'単位修得状況確認表（共通教育科目，外国人留学生）'!L30-'単位修得状況確認表（専門教育科目）'!J79","v":0}]
[null,"2年後期終了時",{"$f":"C212+'単位修得状況確認表（共通教育科目，外国人留学生）'!O25+'単位修得状況確認表（専門教育科目）'!M73","v":0},"",0,{"$f":"F212+'単位修得状況確認表（共通教育科目，外国人留学生）'!N28+'単位修得状況確認表（専門教育科目）'!L77","v":0},{"$f":"G212+'単位修得状況確認表（共通教育科目，外国人留学生）'!N29+'単位修得状況確認表（専門教育科目）'!L78-'単位修得状況確認表（共通教育科目，外国人留学生）'!N30-'単位修得状況確認表（専門教育科目）'!L79","v":0}]
[null,"3年前期終了時",{"$f":"C213+'単位修得状況確認表（共通教育科目，外国人留学生）'!Q25+'単位修得状況確認表（専門教育科目）'!O73","v":0},"",0,{"$f":"F213+'単位修得状況確認表（共通教育科目，外国人留学生）'!P28+'単位修得状況確認表（専門教育科目）'!N77","v":0},{"$f":"G213+'単位修得状況確認表（共通教育科目，外国人留学生）'!P29+'単位修得状況確認表（専門教育科目）'!N78-'単位修得状況確認表（共通教育科目，外国人留学生）'!P30-'単位修得状況確認表（専門教育科目）'!N79","v":0}]
[null,"3年後期終了時",{"$f":"C214+'単位修得状況確認表（共通教育科目，外国人留学生）'!S25+'単位修得状況確認表（専門教育科目）'!Q73","v":0},"",0,{"$f":"F214+'単位修得状況確認表（共通教育科目，外国人留学生）'!R28+'単位修得状況確認表（専門教育科目）'!P77","v":0},{"$f":"G214+'単位修得状況確認表（共通教育科目，外国人留学生）'!R29+'単位修得状況確認表（専門教育科目）'!P78-'単位修得状況確認表（共通教育科目，外国人留学生）'!R30-'単位修得状況確認表（専門教育科目）'!P79","v":0}]
[null,"4年前期終了時",{"$f":"C215+'単位修得状況確認表（共通教育科目，外国人留学生）'!U25+'単位修得状況確認表（専門教育科目）'!S73","v":0},"",0,{"$f":"F215+'単位修得状況確認表（共通教育科目，外国人留学生）'!T28+'単位修得状況確認表（専門教育科目）'!R77","v":0},{"$f":"G215+'単位修得状況確認表（共通教育科目，外国人留学生）'!T29+'単位修得状況確認表（専門教育科目）'!R78-'単位修得状況確認表（共通教育科目，外国人留学生）'!T30-'単位修得状況確認表（専門教育科目）'!R79","v":0}]
[null,"4年後期終了時",{"$f":"C216+'単位修得状況確認表（共通教育科目，外国人留学生）'!W25+'単位修得状況確認表（専門教育科目）'!U73","v":0},"",0,{"$f":"F216+'単位修得状況確認表（共通教育科目，外国人留学生）'!V28+'単位修得状況確認表（専門教育科目）'!T77","v":0},{"$f":"G216+'単位修得状況確認表（共通教育科目，外国人留学生）'!V29+'単位修得状況確認表（専門教育科目）'!T78-'単位修得状況確認表（共通教育科目，外国人留学生）'!V30-'単位修得状況確認表（専門教育科目）'!T79","v":0}]